[Event "EYCC Open-U18 2019"]
[Site "Bratislava"]
[Date "2019.08.06"]
[Round "5.31"]
[White "Bekasovs, Rihards"]
[Black "Crevatin, Leo"]
[Result "1/2-1/2"]
[ECO "A06"]
[WhiteElo "2144"]
[BlackElo "2146"]
[Annotator "NA"]
[PlyCount "93"]
[EventDate "2019.08.02"]
[EventType "swiss"]
[EventCountry "SVK"]
[SourceTitle "playchess.com"]
[Source "ChessBase"]
[SourceQuality "1"]
[TimeControl "40/5400+30:1800+30"]

1. Nf3 {[%emt 0:00:00]} d5 {[%emt 0:00:00]} 2. c4 {[%emt 0:00:00]} e6 {[%emt 0:00:00]} 3. e3 {[%emt 0:00:42]} Nf6 {[%emt 0:00:00]} 4. b3 {[%emt 0:00:07]} b6 {[%emt 0:00:20]} 5. Bb2 {[%emt 0:00:43]} Bb7 {[%emt 0:00:18]} 6. Nc3 {[%emt 0:01:05]} Nbd7 {[%emt 0:01:11]} 7. Be2 {[%emt 0:00:51]} a6 {[%emt 0:02:29]} 8. O-O {[%emt 0:00:51]} Bd6 {[%emt 0:00:08]} 9. Rc1 {[%emt 0:02:03]} O-O {[%emt 0:00:29]} 10. Qc2 {[%emt 0:00:58]} Qe7 {[%emt 0:03:17]} 11. Rfd1 {[%emt 0:10:57]} Rfd8 {[%emt 0:04:59]} 12. d3 {[%emt 0:09:02]} Rac8 {[%emt 0:11:34]} 13. Nb1 {[%emt 0:18:16]} e5 {[%emt 0:08:09]} 14. cxd5 {[%emt 0:03:29]} Nxd5 {[%emt 0:01:44]} 15. Nc3 {[%emt 0:02:09]} c5 {[%emt 0:05:27]} 16. Nxd5 {[%emt 0:02:44]} Bxd5 {[%emt 0:03:42]} 17. Nd2 {[%emt 0:02:53]} Nf6 {[%emt 0:09:00]} 18. Bf3 {[%emt 0:01:29]} Bxf3 {[%emt 0:01:30]} 19. Nxf3 {[%emt 0:00:02]} Nd5 {[%emt 0:02:21]} 20. Qc4 {[%emt 0:01:44]} Nb4 {[%emt 0:03:42]} 21. a3 {[%emt 0:02:38]} b5 {[%emt 0:00:08]} 22. Qe4 {[%emt 0:00:18]} Nc6 {[%emt 0:00:27]} 23. b4 {[%emt 0:08:49]} Na7 {[%emt 0:09:09]} 24. bxc5 {[%emt 0:06:11]} Rxc5 {[%emt 0:01:50]} 25. Rxc5 {[%emt 0:00:13]} Bxc5 {[%emt 0:00:01]} 26. Qxe5 {[%emt 0:00:01]} Qf8 {[%emt 0:01:01]} 27. Qc7 {[%emt 0:08:45]} Rc8 {[%emt 0:03:30]} 28. Qb7 {[%emt 0:05:10]} Qd6 {[%emt 0:02:07]} 29. Rc1 {[%emt 0:00:14]} Rb8 {[%emt 0:05:54]} 30. Qe4 {[%emt 0:01:04]} Qf8 {[%emt 0:01:55]} 31. Qe5 {[%emt 0:02:10]} Bd6 {[%emt 0:00:17]} 32. Qc3 {[%emt 0:01:26]} b4 {[%emt 0:03:13]} 33. axb4 {[%emt 0:00:24]} Bxb4 {[%emt 0:00:15]} 34. Qc2 {[%emt 0:03:29]} Rc8 {[%emt 0:02:41]} 35. Qa4 {[%emt 0:01:23]} a5 {[%emt 0:01:00]} 36. Nd4 {[%emt 0:01:15]} h6 {[%emt 0:00:56]} 37. h3 {[%emt 0:01:52]} Rxc1+ {[%emt 0:01:17]} 38. Bxc1 {[%emt 0:00:01]} Nc8 {[%emt 0:00:15]} 39. Bb2 {[%emt 0:00:44]} Nb6 {[%emt 0:01:15]} 40. Qb5 {[%emt 0:00:00]} Qc5 {[%emt 0:00:00]} 41. Qe8+ {[%emt 0:02:33]} Qf8 {[%emt 0:05:57]} 42. Qe5 {[%emt 0:06:09]} Na4 {[%emt 0:04:49]} 43. Ba1 {[%emt 0:01:33]} Nc5 {[%emt 0:02:43]} 44. Nf5 {[%emt 0:08:55]} f6 {[%emt 0:00:40]} 45. Qd5+ {[%emt 0:06:40]} Qf7 {[%emt 0:00:17]} 46. Qd8+ {[%emt 0:01:59]} Qf8 {[%emt 0:01:04]} 47. Qd5+ {[%emt 0:00:36]} 1/2-1/2

[Event "EYCC Open-U18 2019"]
[Site "Bratislava"]
[Date "2019.08.06"]
[Round "5.32"]
[White "Kukas, Oliver"]
[Black "Golikov, Daniil"]
[Result "1-0"]
[ECO "C13"]
[WhiteElo "2082"]
[BlackElo "2257"]
[Annotator "NA"]
[PlyCount "141"]
[EventDate "2019.08.02"]
[EventType "swiss"]
[EventCountry "SVK"]
[SourceTitle "playchess.com"]
[Source "ChessBase"]
[SourceQuality "1"]
[TimeControl "40/5400+30:1800+30"]

1. e4 {[%emt 0:00:00]} e6 {[%emt 0:00:00]} 2. d4 {[%emt 0:00:00]} d5 {[%emt 0:00:00]} 3. Nc3 {[%emt 0:00:00]} Nf6 {[%emt 0:00:00]} 4. Bg5 {[%emt 0:00:00]} Be7 {[%emt 0:00:00]} 5. e5 {[%emt 0:00:00]} Nfd7 {[%emt 0:00:00]} 6. h4 {[%emt 0:00:00]} h6 {[%emt 0:00:00]} 7. Be3 {[%emt 0:00:26]} c5 {[%emt 0:09:44]} 8. Qg4 {[%emt 0:00:06]} Kf8 {[%emt 0:00:06]} 9. dxc5 {[%emt 0:02:19]} Nxe5 {[%emt 0:03:46]} 10. Qg3 {[%emt 0:00:43]} Nbc6 {[%emt 0:06:22]} 11. O-O-O {[%emt 0:00:23]} Nd7 {[%emt 0:01:41]} 12. Nf3 {[%emt 0:03:09]} Nxc5 {[%emt 0:04:57]} 13. Bf4 {[%emt 0:06:58]} Bd7 {[%emt 0:04:29]} 14. Bc7 {[%emt 0:04:13]} Qc8 {[%emt 0:02:01]} 15. Bb5 {[%emt 0:19:22]} Be8 {[%emt 0:07:21]} 16. Rhe1 {[%emt 0:01:20]} a6 {[%emt 0:03:39]} 17. Nxd5 {[%emt 0:22:51]} exd5 {[%emt 0:03:18]} 18. Bxc6 {[%emt 0:00:12]} Ne4 {[%emt 0:00:30]} 19. Rxe4 {[%emt 0:00:10]} dxe4 {[%emt 0:03:51]} 20. Bxe4 {[%emt 0:00:52]} h5 {[%emt 0:09:12]} 21. Qe5 {[%emt 0:10:48]} Bc6 {[%emt 0:02:45]} 22. Bf5 {[%emt 0:02:09]} Qe8 {[%emt 0:02:34]} 23. Nd4 {[%emt 0:02:41]} Rh6 {[%emt 0:16:16]} 24. g3 {[%emt 0:01:53]} Bb4 {[%emt 0:04:57]} 25. Qf4 {[%emt 0:01:21]} Qe7 {[%emt 0:00:51]} 26. Nb3 {[%emt 0:07:09]} Kg8 {[%emt 0:03:23]} 27. a3 {[%emt 0:03:36]} Bc5 {[%emt 0:01:44]} 28. Nxc5 {[%emt 0:00:22]} Qxc5 {[%emt 0:00:01]} 29. Be5 {[%emt 0:00:40]} Re8 {[%emt 0:01:13]} 30. Bd4 {[%emt 0:00:24]} Qe7 {[%emt 0:00:02]} 31. Bc3 {[%emt 0:00:46]} Bb5 {[%emt 0:04:29]} 32. Qd4 {[%emt 0:00:18]} Rf6 {[%emt 0:00:49]} 33. Qf4 {[%emt 0:01:00]} Rc6 {[%emt 0:00:48]} 34. Re1 {[%emt 0:01:50]} Qxe1+ {[%emt 0:03:45]} 35. Bxe1 {[%emt 0:00:01]} Rxe1+ {[%emt 0:00:04]} 36. Kd2 {[%emt 0:00:11]} Re2+ {[%emt 0:00:02]} 37. Kd1 {[%emt 0:00:54]} Re8 {[%emt 0:00:43]} 38. a4 {[%emt 0:01:52]} Be2+ {[%emt 0:01:26]} 39. Kc1 {[%emt 0:00:31]} Rf6 {[%emt 0:00:01]} 40. Qg5 {[%emt 0:00:00]} Bf3 {[%emt 0:00:00]} 41. Bd3 {[%emt 0:04:26]} Ree6 {[%emt 0:11:26]} 42. Qc5 {[%emt 0:03:00]} g6 {[%emt 0:00:28]} 43. b4 {[%emt 0:00:49]} Kh7 {[%emt 0:03:58]} 44. Kb2 {[%emt 0:00:27]} Rd6 {[%emt 0:01:28]} 45. b5 {[%emt 0:01:54]} axb5 {[%emt 0:00:03]} 46. axb5 {[%emt 0:00:03]} b6 {[%emt 0:00:24]} 47. Qe5 {[%emt 0:00:27]} Kg7 {[%emt 0:00:34]} 48. Qe3 {[%emt 0:02:19]} Rde6 {[%emt 0:00:59]} 49. Qd4 {[%emt 0:00:01]} Kh7 {[%emt 0:00:56]} 50. Bc4 {[%emt 0:01:34]} Rd6 {[%emt 0:00:20]} 51. Qe5 {[%emt 0:00:16]} Kg7 {[%emt 0:00:40]} 52. Kc3 {[%emt 0:01:29]} Rd7 {[%emt 0:02:14]} 53. Bb3 {[%emt 0:03:27]} Ra7 {[%emt 0:01:40]} 54. Kb4 {[%emt 0:01:17]} Ra8 {[%emt 0:00:31]} 55. c4 {[%emt 0:01:55]} Rc8 {[%emt 0:00:06]} 56. Qc3 {[%emt 0:01:23]} Rc5 {[%emt 0:00:49]} 57. Bc2 {[%emt 0:02:16]} Be2 {[%emt 0:00:42]} 58. Bb3 {[%emt 0:01:09]} g5 {[%emt 0:02:05]} 59. hxg5 {[%emt 0:00:18]} Rxg5 {[%emt 0:00:01]} 60. Qe3 {[%emt 0:01:15]} Rgf5 {[%emt 0:03:11]} 61. Qxe2 {[%emt 0:00:07]} Rxf2 {[%emt 0:00:07]} 62. Qxh5 {[%emt 0:00:15]} R2f5 {[%emt 0:01:31]} 63. Qg4+ {[%emt 0:00:24]} Kf8 {[%emt 0:00:05]} 64. Qd4 {[%emt 0:01:21]} Ke7 {[%emt 0:00:33]} 65. Bc2 {[%emt 0:01:39]} Rc5 {[%emt 0:00:43]} 66. Be4 {[%emt 0:00:39]} Rd6 {[%emt 0:00:50]} 67. Bd5 {[%emt 0:00:09]} Rg6 {[%emt 0:00:43]} 68. Qe5+ {[%emt 0:00:16]} Kf8 {[%emt 0:00:11]} 69. Qh8+ {[%emt 0:01:24]} Ke7 {[%emt 0:00:03]} 70. Qh4+ {[%emt 0:01:08]} Kf8 {[%emt 0:00:14]} 71. Qf4 {[%emt 0:00:12]} 1-0

[Event "EYCC Open-U18 2019"]
[Site "Bratislava"]
[Date "2019.08.06"]
[Round "5.33"]
[White "Zeman, Matyas"]
[Black "Kaspar, Lukas"]
[Result "1-0"]
[ECO "B06"]
[WhiteElo "2275"]
[BlackElo "1886"]
[Annotator "NA"]
[PlyCount "55"]
[EventDate "2019.08.02"]
[EventType "swiss"]
[EventCountry "SVK"]
[SourceTitle "playchess.com"]
[Source "ChessBase"]
[SourceQuality "1"]
[TimeControl "40/5400+30:1800+30"]

1. e4 {[%emt 0:00:00]} d6 {[%emt 0:00:23]} 2. d4 {[%emt 0:00:00]} g6 {[%emt 0:00:19]} 3. Nc3 {[%emt 0:00:06]} Bg7 {[%emt 0:00:06]} 4. g3 {[%emt 0:00:40]} a6 {[%emt 0:07:16]} 5. Bg2 {[%emt 0:05:27]} Nd7 {[%emt 0:07:01]} 6. Nge2 {[%emt 0:06:37]} Rb8 {[%emt 0:12:25]} 7. O-O {[%emt 0:01:58]} c5 {[%emt 0:02:12]} 8. dxc5 {[%emt 0:12:16]} Nxc5 {[%emt 0:02:54]} 9. Be3 {[%emt 0:00:14]} Bd7 {[%emt 0:04:44]} 10. Bd4 {[%emt 0:02:05]} Bxd4 {[%emt 0:04:11]} 11. Qxd4 {[%emt 0:00:19]} Nf6 {[%emt 0:00:38]} 12. f4 {[%emt 0:07:57]} O-O {[%emt 0:03:02]} 13. h3 {[%emt 0:02:20]} Qc8 {[%emt 0:08:07]} 14. Kh2 {[%emt 0:01:27]} Ne6 {[%emt 0:04:27]} 15. Qd2 {[%emt 0:00:52]} b5 {[%emt 0:02:22]} 16. a3 {[%emt 0:13:37]} Qc5 {[%emt 0:05:41]} 17. e5 {[%emt 0:02:16]} dxe5 {[%emt 0:06:38]} 18. fxe5 {[%emt 0:00:05]} Qxe5 {[%emt 0:00:15]} 19. Rxf6 {[%emt 0:00:08]} Qxf6 {[%emt 0:01:04]} 20. Qxd7 {[%emt 0:00:04]} Rfd8 {[%emt 0:02:34]} 21. Qa7 {[%emt 0:00:35]} Ng7 {[%emt 0:04:55]} 22. Nf4 {[%emt 0:08:46]} Nf5 {[%emt 0:06:17]} 23. Re1 {[%emt 0:03:01]} Qd6 {[%emt 0:02:49]} 24. Ne4 {[%emt 0:07:00]} Qb6 {[%emt 0:02:39]} 25. Qxb6 {[%emt 0:00:45]} Rxb6 {[%emt 0:00:02]} 26. g4 {[%emt 0:05:49]} Nd6 {[%emt 0:02:35]} 27. Nd5 {[%emt 0:01:53]} Rb7 {[%emt 0:04:44]} 28. Nxd6 {[%emt 0:00:10]} 1-0

[Event "EYCC Open-U18 2019"]
[Site "Bratislava"]
[Date "2019.08.06"]
[Round "5.34"]
[White "Vardanyan, Aras"]
[Black "Hurdzan, Tomas"]
[Result "0-1"]
[ECO "E91"]
[WhiteElo "2027"]
[BlackElo "2231"]
[Annotator "NA"]
[PlyCount "70"]
[EventDate "2019.08.02"]
[EventType "swiss"]
[EventCountry "SVK"]
[SourceTitle "playchess.com"]
[Source "ChessBase"]
[SourceQuality "1"]
[TimeControl "40/5400+30:1800+30"]

1. Nf3 {[%emt 0:00:00]} Nf6 {[%emt 0:00:00]} 2. c4 {[%emt 0:00:00]} g6 {[%emt 0:00:04]} 3. Nc3 {[%emt 0:00:01]} Bg7 {[%emt 0:00:05]} 4. e4 {[%emt 0:00:05]} d6 {[%emt 0:00:06]} 5. d4 {[%emt 0:00:11]} O-O {[%emt 0:00:18]} 6. Be2 {[%emt 0:00:21]} Nbd7 {[%emt 0:00:39]} 7. O-O {[%emt 0:00:44]} e5 {[%emt 0:00:13]} 8. Be3 {[%emt 0:02:50]} c6 {[%emt 0:00:48]} 9. d5 {[%emt 0:00:11]} c5 {[%emt 0:00:37]} 10. h3 {[%emt 0:00:08]} Kh8 {[%emt 0:08:06]} 11. Ne1 {[%emt 0:04:23]} Ng8 {[%emt 0:01:17]} 12. Qd2 {[%emt 0:01:01]} Qe7 {[%emt 0:06:14]} 13. Nd3 {[%emt 0:05:53]} Nb6 {[%emt 0:02:38]} 14. Nc1 {[%emt 0:05:42]} f5 {[%emt 0:01:40]} 15. exf5 {[%emt 0:00:43]} Bxf5 {[%emt 0:00:49]} 16. g4 {[%emt 0:03:53]} Bd7 {[%emt 0:17:57]} 17. Ne4 {[%emt 0:01:40]} Nf6 {[%emt 0:00:53]} 18. Qc2 {[%emt 0:01:00]} Nxe4 {[%emt 0:00:13]} 19. Qxe4 {[%emt 0:00:07]} Qh4 {[%emt 0:04:27]} 20. Kh2 {[%emt 0:09:51]} Bh6 {[%emt 0:02:44]} 21. Bxh6 {[%emt 0:09:45]} Qxh6 {[%emt 0:00:10]} 22. Nd3 {[%emt 0:00:26]} Rae8 {[%emt 0:08:36]} 23. b3 {[%emt 0:04:39]} Bc8 {[%emt 0:06:04]} 24. Qe3 {[%emt 0:04:42]} Qg7 {[%emt 0:00:41]} 25. f3 {[%emt 0:03:53]} Nd7 {[%emt 0:00:53]} 26. Nf2 {[%emt 0:01:22]} Rf4 {[%emt 0:02:32]} 27. Ne4 {[%emt 0:03:34]} Qe7 {[%emt 0:00:06]} 28. Kg3 {[%emt 0:00:57]} Nf6 {[%emt 0:01:09]} 29. Bd3 {[%emt 0:04:26]} Rf8 {[%emt 0:01:41]} 30. Rf2 {[%emt 0:04:54]} Nxe4+ {[%emt 0:01:12]} 31. Bxe4 {[%emt 0:00:07]} Qg5 {[%emt 0:02:29]} 32. Re1 {[%emt 0:01:47]} Kg7 {[%emt 0:00:40]} 33. Rh2 {[%emt 0:02:32]} h5 {[%emt 0:01:39]} 34. Kg2 {[%emt 0:01:28]} hxg4 {[%emt 0:04:17]} 35. hxg4 {[%emt 0:00:06]} Bxg4 0-1

[Event "EYCC Open-U18 2019"]
[Site "Bratislava"]
[Date "2019.08.06"]
[Round "5.35"]
[White "Baranciuc, Alexandr"]
[Black "Ludvik, Tomas"]
[Result "0-1"]
[ECO "B40"]
[WhiteElo "1901"]
[BlackElo "2334"]
[Annotator "NA"]
[PlyCount "62"]
[EventDate "2019.08.02"]
[EventType "swiss"]
[EventCountry "SVK"]
[SourceTitle "playchess.com"]
[Source "ChessBase"]
[SourceQuality "1"]
[TimeControl "40/5400+30:1800+30"]

1. e4 {[%emt 0:00:00]} c5 {[%emt 0:00:00]} 2. Nf3 {[%emt 0:00:00]} e6 {[%emt 0:00:06]} 3. b3 {[%emt 0:00:03]} d6 {[%emt 0:04:22]} 4. Bb5+ {[%emt 0:06:27]} Nd7 {[%emt 0:02:42]} 5. d4 {[%emt 0:00:48]} Qa5+ {[%emt 0:04:16]} 6. Nc3 {[%emt 0:01:01]} Qxc3+ {[%emt 0:10:30]} 7. Bd2 {[%emt 0:00:06]} Qb2 {[%emt 0:00:06]} 8. a4 {[%emt 0:00:05]} cxd4 {[%emt 0:05:40]} 9. b4 {[%emt 0:00:40]} d3 {[%emt 0:04:06]} 10. Bxd3 {[%emt 0:04:20]} Qf6 {[%emt 0:07:43]} 11. Bg5 {[%emt 0:00:09]} Qc3+ {[%emt 0:00:28]} 12. Bd2 {[%emt 0:00:17]} Qc7 {[%emt 0:00:09]} 13. O-O {[%emt 0:02:17]} Ngf6 {[%emt 0:00:19]} 14. Nd4 {[%emt 0:00:54]} Be7 {[%emt 0:01:50]} 15. f4 {[%emt 0:00:32]} b6 {[%emt 0:03:09]} 16. Ra3 {[%emt 0:07:05]} Bb7 {[%emt 0:01:36]} 17. Qe2 {[%emt 0:01:32]} Rc8 {[%emt 0:06:52]} 18. g4 {[%emt 0:03:19]} d5 {[%emt 0:01:27]} 19. Nb5 {[%emt 0:05:49]} Qb8 {[%emt 0:01:32]} 20. f5 {[%emt 0:01:50]} dxe4 {[%emt 0:06:46]} 21. fxe6 {[%emt 0:00:50]} Ne5 {[%emt 0:01:09]} 22. exf7+ {[%emt 0:04:24]} Kf8 {[%emt 0:02:21]} 23. Bf4 {[%emt 0:13:56]} Nf3+ {[%emt 0:01:42]} 24. Rxf3 {[%emt 0:00:27]} exf3 {[%emt 0:00:09]} 25. Qd2 {[%emt 0:01:10]} Qa8 {[%emt 0:02:26]} 26. Bf5 {[%emt 0:09:19]} Kxf7 {[%emt 0:02:45]} 27. Qe3 {[%emt 0:04:09]} Be4 {[%emt 0:01:53]} 28. Bxc8 {[%emt 0:03:50]} Qxc8 {[%emt 0:00:15]} 29. Bg3 {[%emt 0:01:45]} Qxc2 {[%emt 0:01:11]} 30. Bf2 {[%emt 0:00:06]} Nd5 {[%emt 0:01:59]} 31. Qe1 {[%emt 0:01:30]} Nf4 {[%emt 0:02:05]} 0-1

[Event "EYCC Open-U18 2019"]
[Site "Bratislava"]
[Date "2019.08.06"]
[Round "5.36"]
[White "Stijve, Theo"]
[Black "Triantos, Konstantinos"]
[Result "0-1"]
[ECO "A05"]
[WhiteElo "2336"]
[BlackElo "2129"]
[Annotator "NA"]
[PlyCount "86"]
[EventDate "2019.08.02"]
[EventType "swiss"]
[EventCountry "SVK"]
[SourceTitle "playchess.com"]
[Source "ChessBase"]
[SourceQuality "1"]
[TimeControl "40/5400+30:1800+30"]

1. Nf3 {[%emt 0:00:00]} Nf6 {[%emt 0:00:07]} 2. g3 {[%emt 0:00:31]} e6 {[%emt 0:00:17]} 3. Bg2 {[%emt 0:00:07]} d5 {[%emt 0:00:03]} 4. O-O {[%emt 0:00:12]} Be7 {[%emt 0:00:11]} 5. d4 {[%emt 0:00:06]} O-O {[%emt 0:00:22]} 6. c4 {[%emt 0:00:07]} c6 {[%emt 0:00:07]} 7. Nc3 {[%emt 0:00:07]} b6 {[%emt 0:00:16]} 8. Nd2 {[%emt 0:00:09]} Ba6 {[%emt 0:00:27]} 9. b3 {[%emt 0:02:46]} b5 {[%emt 0:00:45]} 10. Bb2 {[%emt 0:06:24]} Nbd7 {[%emt 0:02:20]} 11. Qc2 {[%emt 0:04:09]} Rc8 {[%emt 0:13:04]} 12. Rfe1 bxc4 {[%emt 0:04:33]} 13. bxc4 {[%emt 0:15:52]} dxc4 {[%emt 0:00:13]} 14. e4 {[%emt 0:06:34]} Nb6 {[%emt 0:15:00]} 15. Rad1 {[%emt 0:09:08]} Qc7 {[%emt 0:04:24]} 16. a4 {[%emt 0:07:49]} Rfd8 {[%emt 0:04:28]} 17. a5 {[%emt 0:09:09]} Nbd7 {[%emt 0:00:05]} 18. Qa4 {[%emt 0:01:16]} Rb8 {[%emt 0:04:57]} 19. Qa2 {[%emt 0:03:52]} c5 {[%emt 0:04:29]} 20. e5 {[%emt 0:18:05]} cxd4 {[%emt 0:00:07]} 21. exf6 {[%emt 0:01:04]} Nxf6 {[%emt 0:04:08]} 22. Nde4 {[%emt 0:05:00]} dxc3 {[%emt 0:00:30]} 23. Bxc3 {[%emt 0:00:14]} Nd5 {[%emt 0:02:37]} 24. Ba1 {[%emt 0:05:34]} c3 {[%emt 0:02:45]} 25. Qc2 {[%emt 0:02:07]} Bc4 {[%emt 0:02:00]} 26. Rc1 {[%emt 0:01:18]} Bb3 {[%emt 0:02:23]} 27. Qe2 {[%emt 0:00:26]} Ba3 {[%emt 0:02:34]} 28. Rxc3 {[%emt 0:01:21]} Nxc3 {[%emt 0:00:04]} 29. Bxc3 {[%emt 0:00:23]} e5 {[%emt 0:04:21]} 30. Qg4 {[%emt 0:00:33]} Be7 {[%emt 0:01:56]} 31. f4 {[%emt 0:00:31]} Bc5+ {[%emt 0:01:40]} 32. Kh1 {[%emt 0:00:10]} Bd4 {[%emt 0:00:03]} 33. Nf6+ {[%emt 0:00:49]} Kh8 {[%emt 0:00:11]} 34. Nh5 {[%emt 0:00:34]} f5 {[%emt 0:02:13]} 35. Qxf5 {[%emt 0:00:01]} Qxc3 {[%emt 0:00:58]} 36. Rf1 {[%emt 0:00:45]} Qc2 {[%emt 0:03:25]} 37. Qg5 {[%emt 0:00:42]} Qg6 {[%emt 0:00:49]} 38. Qh4 {[%emt 0:00:02]} Bd5 {[%emt 0:01:43]} 39. Bxd5 {[%emt 0:00:29]} Rxd5 {[%emt 0:00:04]} 40. fxe5 {[%emt 0:00:00]} Rxe5 {[%emt 0:00:00]} 41. Qxd4 {[%emt 0:02:48]} Rxh5 {[%emt 0:03:17]} 42. Qxa7 {[%emt 0:03:16]} Qxg3 {[%emt 0:01:42]} 43. Rg1 {[%emt 0:01:03]} Qxh2# 0-1

[Event "EYCC Open-U18 2019"]
[Site "Bratislava"]
[Date "2019.08.06"]
[Round "5.37"]
[White "Storme, Isak"]
[Black "Toquero Gracia, Pau"]
[Result "1-0"]
[ECO "B40"]
[WhiteElo "2330"]
[BlackElo "2080"]
[Annotator "NA"]
[PlyCount "99"]
[EventDate "2019.08.02"]
[EventType "swiss"]
[EventCountry "SVK"]
[SourceTitle "playchess.com"]
[Source "ChessBase"]
[SourceQuality "1"]
[TimeControl "40/5400+30:1800+30"]

1. e4 {[%emt 0:00:00]} c5 {[%emt 0:00:00]} 2. Nf3 {[%emt 0:00:00]} e6 {[%emt 0:00:00]} 3. b3 {[%emt 0:00:25]} d6 {[%emt 0:03:06]} 4. Bb2 {[%emt 0:03:31]} Nf6 {[%emt 0:00:04]} 5. e5 {[%emt 0:00:52]} dxe5 {[%emt 0:00:24]} 6. Nxe5 {[%emt 0:00:10]} Nbd7 {[%emt 0:00:35]} 7. f4 {[%emt 0:01:21]} g6 {[%emt 0:10:30]} 8. Qf3 {[%emt 0:06:38]} Bg7 {[%emt 0:03:08]} 9. Nxd7 {[%emt 0:00:28]} Qxd7 {[%emt 0:00:37]} 10. Nc3 {[%emt 0:00:46]} O-O {[%emt 0:02:01]} 11. O-O-O {[%emt 0:00:17]} a6 {[%emt 0:09:10]} 12. Na4 {[%emt 0:05:50]} Qd5 {[%emt 0:18:36]} 13. Qxd5 {[%emt 0:05:20]} Nxd5 {[%emt 0:04:37]} 14. Bxg7 {[%emt 0:02:54]} Kxg7 {[%emt 0:00:26]} 15. g3 {[%emt 0:00:55]} Bd7 {[%emt 0:10:57]} 16. Nxc5 {[%emt 0:01:11]} Bc6 {[%emt 0:01:23]} 17. Rg1 {[%emt 0:02:24]} Rac8 {[%emt 0:05:08]} 18. Nd3 {[%emt 0:01:12]} Rfd8 {[%emt 0:08:13]} 19. Kb2 {[%emt 0:00:50]} Ne7 {[%emt 0:04:19]} 20. Ne5 {[%emt 0:02:42]} Be4 {[%emt 0:03:44]} 21. Bd3 {[%emt 0:04:56]} Bxd3 {[%emt 0:00:07]} 22. Nxd3 {[%emt 0:00:13]} Nf5 {[%emt 0:01:51]} 23. Ne5 {[%emt 0:01:52]} h5 {[%emt 0:05:21]} 24. Rge1 {[%emt 0:04:15]} Rc7 {[%emt 0:03:02]} 25. Re4 {[%emt 0:02:15]} Rcc8 {[%emt 0:03:01]} 26. Rc4 {[%emt 0:02:51]} Rxc4 {[%emt 0:00:38]} 27. Nxc4 {[%emt 0:00:27]} Nd4 {[%emt 0:01:28]} 28. d3 {[%emt 0:04:41]} Nf3 {[%emt 0:00:36]} 29. h3 {[%emt 0:00:20]} Nd4 {[%emt 0:00:35]} 30. Rd2 {[%emt 0:03:51]} b5 {[%emt 0:00:40]} 31. Ne3 {[%emt 0:01:22]} Nc6 {[%emt 0:00:20]} 32. c3 {[%emt 0:01:11]} e5 {[%emt 0:00:11]} 33. fxe5 {[%emt 0:00:42]} Nxe5 {[%emt 0:00:06]} 34. d4 {[%emt 0:01:00]} Nf3 {[%emt 0:00:04]} 35. Rd3 {[%emt 0:02:28]} Re8 {[%emt 0:01:12]} 36. Nf5+ {[%emt 0:00:54]} gxf5 {[%emt 0:00:52]} 37. Rxf3 {[%emt 0:00:06]} Re2+ {[%emt 0:00:15]} 38. Ka3 {[%emt 0:00:18]} Kg6 {[%emt 0:00:42]} 39. d5 {[%emt 0:01:13]} Kg5 {[%emt 0:00:52]} 40. c4 {[%emt 0:00:00]} Rc2 {[%emt 0:00:00]} 41. d6 Rd2 {[%emt 0:03:39]} 42. c5 {[%emt 0:03:14]} Kf6 {[%emt 0:00:55]} 43. Rc3 {[%emt 0:01:21]} Rd4 {[%emt 0:03:21]} 44. b4 {[%emt 0:02:00]} a5 {[%emt 0:00:04]} 45. c6 {[%emt 0:01:51]} axb4+ {[%emt 0:00:24]} 46. Kb3 {[%emt 0:00:06]} bxc3 {[%emt 0:00:28]} 47. c7 {[%emt 0:00:08]} Rc4 {[%emt 0:00:26]} 48. d7 {[%emt 0:00:07]} c2 {[%emt 0:00:23]} 49. d8=Q+ {[%emt 0:00:35]} Kg6 {[%emt 0:00:06]} 50. c8=Q {[%emt 0:01:56]} 1-0

[Event "EYCC Open-U18 2019"]
[Site "Bratislava"]
[Date "2019.08.06"]
[Round "5.38"]
[White "Tisaj, Domen"]
[Black "Joensson, Jacob"]
[Result "1-0"]
[ECO "D04"]
[WhiteElo "2232"]
[BlackElo "1981"]
[Annotator "NA"]
[PlyCount "69"]
[EventDate "2019.08.02"]
[EventType "swiss"]
[EventCountry "SVK"]
[SourceTitle "playchess.com"]
[Source "ChessBase"]
[SourceQuality "1"]
[TimeControl "40/5400+30:1800+30"]

1. d4 {[%emt 0:00:34]} Nf6 {[%emt 0:00:00]} 2. Nf3 {[%emt 0:00:33]} d5 {[%emt 0:00:00]} 3. e3 {[%emt 0:00:31]} Bg4 {[%emt 0:09:30]} 4. c4 {[%emt 0:02:24]} e6 {[%emt 0:00:54]} 5. Nc3 {[%emt 0:00:22]} c6 {[%emt 0:02:54]} 6. h3 {[%emt 0:00:14]} Bh5 {[%emt 0:00:33]} 7. g4 {[%emt 0:01:07]} Bg6 {[%emt 0:00:15]} 8. Ne5 {[%emt 0:00:11]} dxc4 {[%emt 0:37:06]} 9. Bxc4 {[%emt 0:05:13]} Nbd7 {[%emt 0:03:20]} 10. Nxg6 {[%emt 0:00:25]} hxg6 {[%emt 0:00:10]} 11. Qf3 {[%emt 0:01:38]} Nb6 {[%emt 0:04:21]} 12. Bb3 {[%emt 0:05:59]} Qd7 {[%emt 0:05:02]} 13. g5 {[%emt 0:01:30]} Nfd5 {[%emt 0:05:27]} 14. e4 {[%emt 0:02:30]} Nxc3 {[%emt 0:02:01]} 15. bxc3 {[%emt 0:04:02]} Rh4 {[%emt 0:06:06]} 16. a4 {[%emt 0:02:27]} a5 {[%emt 0:01:38]} 17. Be3 {[%emt 0:00:59]} Qc7 {[%emt 0:02:29]} 18. Qg3 {[%emt 0:06:51]} Qxg3 {[%emt 0:08:00]} 19. fxg3 {[%emt 0:00:08]} Rh8 {[%emt 0:01:18]} 20. h4 {[%emt 0:05:50]} Bd6 {[%emt 0:01:20]} 21. Kf2 {[%emt 0:00:42]} Ke7 {[%emt 0:01:07]} 22. Rab1 {[%emt 0:01:47]} Nd7 {[%emt 0:00:53]} 23. e5 {[%emt 0:01:17]} Bc7 {[%emt 0:00:45]} 24. Bc2 {[%emt 0:00:17]} Rab8 {[%emt 0:00:45]} 25. Kg2 {[%emt 0:02:10]} b5 {[%emt 0:01:34]} 26. Be4 {[%emt 0:00:21]} bxa4 {[%emt 0:01:21]} 27. Bxc6 {[%emt 0:00:28]} a3 {[%emt 0:00:26]} 28. Bb5 {[%emt 0:02:50]} a2 {[%emt 0:01:35]} 29. Rb3 {[%emt 0:00:16]} Nb6 {[%emt 0:00:23]} 30. c4 {[%emt 0:00:21]} a4 {[%emt 0:01:40]} 31. Ra3 {[%emt 0:00:27]} Nd5 {[%emt 0:01:33]} 32. cxd5 {[%emt 0:00:32]} exd5 {[%emt 0:00:22]} 33. Bxa4 {[%emt 0:01:16]} Rb2+ {[%emt 0:00:16]} 34. Kf3 {[%emt 0:00:58]} Rb1 {[%emt 0:00:11]} 35. Rc1 {[%emt 0:00:06]} 1-0